bitfinex-derivatives/quotes_BTCF0:USTF0_20241021
["timestamp","ask_amount","ask_price","bid_price","bid_amount"]
[1729503015560,0.98457266,68401.0,68400.0,0.002]
[1729503016347,0.85689161,68401.0,68400.0,0.002]
[1729503017959,0.85689161,68401.0,68388.0,0.3608]
[1729503017960,0.41829161,68401.0,68392.0,0.17723832]
[1729503018152,0.3608,68394.0,68392.0,0.17723832]
[1729503018357,0.15085161,68393.0,68392.0,0.17723832]
[1729503018759,0.15085161,68393.0,68388.0,0.26759779]
[1729503018967,0.05249161,68392.0,68388.0,0.26759779]
[1729503019172,0.05249161,68391.0,68388.0,0.26759779]
[1729503019464,0.05249161,68392.0,68388.0,0.26759779]
[1729503019763,0.05249161,68392.0,68385.0,0.142]
[1729503019764,0.15085161,68393.0,68385.0,0.142]
[1729503019956,0.17694307,68393.0,68388.0,0.001]
[1729503020855,0.18294307,68393.0,68388.0,0.002]
[1729503021965,0.001,68392.0,68388.0,0.002]
[1729503022271,0.001,68392.0,68391.0,0.17723832]
[1729503022472,0.18394307,68393.0,68388.0,0.002]
[1729503022765,0.18394307,68393.0,68392.0,0.07887832]
[1729503023062,0.18294307,68393.0,68392.0,0.07887832]
[1729503023267,0.3608,68413.0,68393.0,0.07887832]
[1729503023461,0.09836,68406.0,68399.0,0.07887832]
[1729503023658,0.09836,68406.0,68400.0,0.1376]
[1729503023856,0.09836,68405.0,68400.0,0.1376]
[1729503024251,0.09836,68405.0,68401.0,0.3608]
[1729503024759,0.09836,68405.0,68400.0,0.1376]
[1729503025159,0.09836,68404.0,68400.0,0.1376]
[1729503025766,0.09836,68404.0,68401.0,0.001]
[1729503026352,0.09936,68404.0,68401.0,0.1449]
[1729503026959,0.09836,68403.0,68401.0,0.1459]
[1729503027361,0.09836,68403.0,68401.0,0.001]
[1729503027672,0.25186,68403.0,68400.0,0.1386]
[1729503027968,0.25186,68403.0,68400.0,0.001]
[1729503028269,0.25186,68403.0,68401.0,0.001]
[1729503028657,0.25286,68403.0,68401.0,0.002]
[1729503028855,0.25386,68403.0,68401.0,0.001]
[1729503029363,0.25286,68403.0,68401.0,0.001]
[1729503029567,0.25386,68403.0,68401.0,0.002]
[1729503031371,0.18016865,68402.0,68399.0,0.07887832]
[1729503031564,0.18016865,68401.0,68399.0,0.07887832]
[1729503031764,0.18016865,68400.0,68399.0,0.07887832]
[1729503032370,0.18016865,68400.0,68399.0,0.06187755]
[1729503032578,0.18016865,68400.0,68399.0,0.06287755]
[1729503033269,0.18216865,68400.0,68399.0,0.06287755]
[1729503034066,0.18216865,68400.0,68399.0,0.0575898]
[1729503035367,0.18216865,68400.0,68389.0,0.2307264]
[1729503035569,0.18016865,68399.0,68389.0,0.2307264]
[1729503035775,0.18016865,68398.0,68389.0,0.2307264]
[1729503035973,0.18016865,68397.0,68389.0,0.2307264]
[1729503036271,0.18016865,68396.0,68389.0,0.2307264]
[1729503036474,0.18016865,68395.0,68389.0,0.04718929]
[1729503036667,0.18016865,68394.0,68389.0,0.04718929]
[1729503036867,0.18016865,68393.0,68389.0,0.04718929]
[1729503037068,0.18016865,68392.0,68389.0,0.04818929]
[1729503037371,0.03193383,68400.0,68389.0,0.04818929]
[1729503037372,0.18016865,68391.0,68389.0,0.04818929]
[1729503037573,0.11254579,68390.0,68389.0,0.04818929]
[1729503037772,0.11254579,68390.0,68389.0,0.04718929]
[1729503037969,0.11254579,68390.0,68389.0,0.04818929]
[1729503038869,0.11254579,68390.0,68389.0,0.04918929]
[1729503039276,0.11254579,68390.0,68389.0,0.04818929]
[1729503039577,0.1394348,68390.0,68389.0,0.04918929]
[1729503040469,0.1394348,68390.0,68389.0,0.04427037]
[1729503040870,0.20705766,68390.0,68389.0,0.04427037]
[1729503041468,0.20705766,68390.0,68386.0,0.27227793]
[1729503041777,0.18016865,68389.0,68386.0,0.27227793]
[1729503041973,0.18016865,68388.0,68386.0,0.27227793]
[1729503042175,0.18016865,68387.0,68386.0,0.27227793]
[1729503042375,0.11254579,68387.0,68386.0,0.27227793]
[1729503042677,0.18016865,68387.0,68386.0,0.27227793]
[1729503042976,0.18016865,68387.0,68386.0,0.27327793]
[1729503043171,0.18016865,68387.0,68386.0,0.27427793]
[1729503043764,0.18016865,68387.0,68386.0,0.27227793]
[1729503043972,0.18016865,68387.0,68386.0,0.27327793]
[1729503043973,0.18916865,68387.0,68386.0,0.27327793]
[1729503046477,0.009,68387.0,68386.0,0.14356904]
[1729503056179,0.009,68387.0,68386.0,0.04837328]
[1729503058780,0.05392239,68387.0,68386.0,0.04837328]
[1729503060095,0.009,68387.0,68381.0,0.5212]
[1729503060380,0.0449253,68386.0,68381.0,0.1604]
[1729503060584,0.009,68387.0,68381.0,0.1604]
[1729503060781,0.0449265,68386.0,68381.0,0.1604]
[1729503060987,0.0449265,68385.0,68381.0,0.1604]
[1729503061189,0.0449265,68384.0,68381.0,0.1604]
[1729503061483,0.009,68387.0,68376.0,0.1615]
[1729503061484,0.15747229,68383.0,68376.0,0.1615]
[1729503061685,0.15747229,68382.0,68376.0,0.1615]
[1729503061890,0.22509515,68381.0,68376.0,0.1615]
[1729503062086,0.22509515,68380.0,68376.0,0.1615]
[1729503062282,0.22509515,68379.0,68376.0,0.1615]
[1729503062483,0.18016865,68378.0,68376.0,0.1615]
[1729503062679,0.18016865,68377.0,68376.0,0.1615]
[1729503063083,0.18016865,68377.0,68376.0,0.60026]
[1729503064491,0.22509362,68377.0,68376.0,0.60626]
[1729503065188,0.22509362,68377.0,68376.0,0.60526]
[1729503065386,0.22509362,68377.0,68376.0,0.60726]
[1729503066591,0.22509362,68377.0,68376.0,0.42035247]
[1729503067593,0.18016865,68377.0,68376.0,0.42035247]
[1729503069496,0.3054975,68385.0,68376.0,0.42035247]
[1729503069700,0.33090503,68385.0,68380.0,0.3608]
[1729503070292,0.0524876,68384.0,68380.0,0.3608]
[1729503070491,0.02540753,68385.0,68380.0,0.3608]
[1729503070896,0.03340753,68385.0,68380.0,0.3608]
[1729503071094,0.05973969,68385.0,68380.0,0.3608]
[1729503071495,0.002,68384.0,68380.0,0.3608]
[1729503072199,0.02740753,68384.0,68380.0,0.3608]
[1729503073784,0.03040753,68384.0,68380.0,0.3608]
[1729503074591,0.04492476,68383.0,68380.0,0.3608]
[1729503074792,0.04492476,68382.0,68380.0,0.3608]
[1729503074998,0.04492476,68381.0,68380.0,0.3608]
[1729503077705,0.04492476,68381.0,68380.0,0.3618]
[1729503078090,0.04692476,68381.0,68380.0,0.3618]
[1729503081604,0.04692476,68381.0,68380.0,0.43496]
[1729503082811,0.002,68381.0,68380.0,0.43496]
[1729503083298,0.002,68381.0,68380.0,0.3618]
[1729503084509,0.09941253,68381.0,68380.0,0.3618]
[1729503084711,0.09941253,68381.0,68380.0,0.43496]
[1729503084896,0.1712,68397.0,68384.0,0.073155]
[1729503085099,0.02540753,68390.0,68388.0,0.3608]
[1729503085296,0.02540753,68390.0,68388.0,0.32472001]
[1729503086596,0.02940753,68390.0,68388.0,0.32572001]
[1729503087010,0.0600568,68389.0,68388.0,0.32672001]
[1729503087210,0.08546433,68389.0,68388.0,0.32672001]
[1729503087802,0.13795253,68389.0,68388.0,0.32672001]
[1729503088204,0.13795253,68389.0,68388.0,0.32572001]
[1729503088509,0.14195253,68389.0,68388.0,0.32672001]
[1729503088709,0.14295253,68389.0,68388.0,0.32672001]
[1729503089207,0.14295253,68389.0,68388.0,0.3628]
[1729503089907,0.18787209,68389.0,68388.0,0.3628]
[1729503090301,0.18787209,68389.0,68388.0,0.30972001]
[1729503091509,0.04991956,68389.0,68388.0,0.30972001]
[1729503092012,0.04991956,68389.0,68385.0,0.168]
[1729503092208,0.04491956,68388.0,68387.0,0.3608]
[1729503093207,0.008,68389.0,68387.0,0.3608]
[1729503093700,0.04492034,68388.0,68387.0,0.3608]
[1729503093897,0.008,68389.0,68385.0,0.242155]
[1729503094107,0.004,68389.0,68387.0,0.001]
[1729503094315,0.006,68388.0,68387.0,0.001]
[1729503094805,0.01,68388.0,68387.0,0.002]
[1729503095205,0.004,68388.0,68387.0,0.001]
[1729503095510,0.004,68388.0,68387.0,0.002]
[1729503097305,0.004,68388.0,68387.0,0.001]
[1729503097510,0.009,68388.0,68387.0,0.002]
[1729503098620,0.05392051,68388.0,68387.0,0.002]
[1729503099514,0.13181624,68388.0,68387.0,0.002]
[1729503100499,0.55267304,68388.0,68371.0,0.39380326]
[1729503100699,0.02540753,68381.0,68371.0,0.49216326]
[1729503100908,0.34746551,68380.0,68371.0,0.39380326]
[1729503101112,0.15747193,68379.0,68371.0,0.39380326]
[1729503101310,0.15747193,68378.0,68371.0,0.39380326]
[1729503101509,0.02540753,68375.0,68371.0,0.39380326]
[1729503101713,0.15747193,68374.0,68371.0,0.39480326]
[1729503101913,0.15747193,68373.0,68371.0,0.39480326]
[1729503102113,0.15747193,68372.0,68371.0,0.07417]
[1729503102409,0.15747193,68372.0,68371.0,0.43497]
[1729503103812,0.15747193,68372.0,68371.0,0.43597]
[1729503104120,0.15847193,68372.0,68371.0,0.44497]
[1729503104816,0.15847193,68372.0,68371.0,0.44397]
[1729503105121,0.15847193,68372.0,68371.0,0.45097]
[1729503106222,0.15847193,68372.0,68371.0,0.09017]
[1729503106622,0.04592693,68372.0,68371.0,0.45097]
[1729503107913,0.04592693,68372.0,68371.0,0.09017]
[1729503108415,0.04592693,68372.0,68371.0,0.45097]
[1729503108611,0.001,68372.0,68371.0,0.45097]
[1729503109615,0.04592683,68372.0,68371.0,0.45097]
[1729503112428,0.04592683,68372.0,68371.0,0.09017]
[1729503112725,0.07133437,68372.0,68371.0,0.3778]
[1729503113026,0.07133437,68372.0,68371.0,0.017]
[1729503114623,0.13102841,68372.0,68363.0,0.3608]
[1729503114924,0.02540753,68364.0,68363.0,0.3608]
[1729503115119,0.12284074,68364.0,68363.0,0.3608]
[1729503115828,0.12284074,68364.0,68356.0,0.3608]
[1729503116028,0.02540753,68357.0,68356.0,0.3608]
[1729503116331,0.12284074,68357.0,68356.0,0.3608]
[1729503117223,0.12284074,68357.0,68349.0,0.3608]
[1729503117431,0.02540753,68350.0,68349.0,0.3608]
[1729503117725,0.12284074,68350.0,68349.0,0.3608]
[1729503118224,0.12284074,68350.0,68340.0,0.21472329]
[1729503118418,0.09743321,68349.0,68340.0,0.28792629]
[1729503118624,0.09743321,68348.0,68340.0,0.261903]
[1729503118823,0.09743321,68347.0,68341.0,0.073202]
[1729503119024,0.02640753,68350.0,68341.0,0.073202]
[1729503119025,0.09745162,68346.0,68341.0,0.073202]
[1729503119218,0.09745162,68345.0,68341.0,0.073202]
[1729503119416,0.09745162,68344.0,68337.0,0.36299535]
[1729503119620,0.09745162,68343.0,68337.0,0.36299535]
[1729503119816,0.09745162,68342.0,68340.0,0.073203]
[1729503120024,0.09745162,68341.0,68340.0,0.073203]
[1729503120227,0.12285915,68341.0,68340.0,0.006]
[1729503120841,0.12285915,68341.0,68337.0,0.3608]
[1729503121144,0.12285915,68340.0,68337.0,0.3608]
[1729503121331,0.09745162,68339.0,68337.0,0.3608]
[1729503121532,0.09745162,68338.0,68337.0,0.3608]
[1729503121723,0.02540753,68340.0,68337.0,0.3608]
[1729503122834,0.003,68339.0,68337.0,0.3608]
[1729503123021,0.02840753,68339.0,68337.0,0.3608]
[1729503123425,0.02540753,68338.0,68329.0,0.3608]
[1729503123637,0.02540753,68338.0,68321.0,0.36252]
[1729503123638,0.02540753,68330.0,68321.0,0.36252]
[1729503123841,0.3608,68332.0,68321.0,0.36252]
[1729503123842,0.02540753,68327.0,68321.0,0.3608]
[1729503124030,0.3608,68332.0,68321.0,0.3608]
[1729503124031,0.02540753,68324.0,68321.0,0.3608]
[1729503125435,0.02640753,68324.0,68321.0,0.3708]
[1729503126030,0.05214367,68324.0,68321.0,0.3618]
[1729503126229,0.02540753,68324.0,68321.0,0.3618]
[1729503127127,0.02640753,68324.0,68321.0,0.3718]
[1729503127841,0.02640753,68324.0,68321.0,0.3618]
[1729503128030,0.001,68324.0,68321.0,0.3608]
[1729503128232,0.02540753,68323.0,68321.0,0.3608]
[1729503129544,0.02540753,68322.0,68321.0,0.3608]
[1729503130831,0.04496053,68322.0,68321.0,0.3608]
[1729503131038,0.04796053,68322.0,68321.0,0.3608]
[1729503131238,0.04896053,68322.0,68321.0,0.434024]
[1729503131540,0.04896053,68322.0,68321.0,0.3608]
[1729503131741,0.07436819,68322.0,68321.0,0.3608]
[1729503132245,0.04896066,68322.0,68321.0,0.3608]
[1729503132432,0.04896066,68322.0,68321.0,0.434024]
[1729503135037,0.07436819,68322.0,68321.0,0.434024]
[1729503135238,0.07436819,68322.0,68321.0,0.3608]
[1729503136548,0.07436924,68322.0,68321.0,0.3608]
[1729503136741,0.02940753,68322.0,68321.0,0.3608]
[1729503140948,0.02940753,68322.0,68258.0,0.0878346]
[1729503140949,0.80392,68322.0,68306.0,0.32311247]
[1729503141152,0.80392,68322.0,68300.0,0.3608]
[1729503141153,0.3608,68313.0,68300.0,0.3608]
[1729503141335,0.3608,68306.0,68294.0,0.3608]
[1729503141541,0.81434,68312.0,68267.0,0.3608]
[1729503141542,0.3608,68295.0,68267.0,0.3608]
[1729503141741,0.3608,68278.0,68272.0,0.0012]
[1729503142847,0.3608,68278.0,68265.0,0.3608]
[1729503143348,0.001,68278.0,68277.0,0.3608]
[1729503143739,0.001,68278.0,68272.0,0.009]
[1729503143944,0.001,68278.0,68274.0,0.073274]
[1729503144443,0.001,68278.0,68273.0,0.2299]
[1729503144444,0.3608,68288.0,68278.0,0.07327]
[1729503144755,0.3608,68288.0,68277.0,0.3608]
[1729503144756,0.3608,68288.0,68279.0,0.431]
[1729503145254,0.3608,68288.0,68286.0,0.073261]
[1729503146052,0.3608,68288.0,68280.0,0.073267]
[1729503146253,0.3608,68288.0,68281.0,0.073266]
[1729503146445,0.3638,68288.0,68282.0,0.073265]
[1729503146641,0.3638,68288.0,68283.0,0.073264]
[1729503147248,0.3688,68288.0,68283.0,0.073264]
[1729503147545,0.3688,68288.0,68284.0,0.073263]
[1729503147955,0.3608,68288.0,68286.0,0.002]
[1729503148544,0.3608,68288.0,68279.0,0.57708]
[1729503148743,0.3608,68288.0,68283.0,0.002]
[1729503149146,0.3608,68288.0,68279.0,0.4322]
[1729503149346,0.3608,68288.0,68286.0,0.002]
[1729503150853,0.3608,68288.0,68283.0,0.073264]
[1729503151055,0.3608,68288.0,68283.0,0.075264]
[1729503151654,0.3608,68288.0,68286.0,0.002]
[1729503151853,0.04498279,68287.0,68286.0,0.002]
[1729503152357,0.04498279,68287.0,68284.0,0.073263]
[1729503152553,0.3608,68288.0,68284.0,0.073263]
[1729503152554,0.04498279,68286.0,68284.0,0.073263]
[1729503152855,0.04498279,68285.0,68284.0,0.073263]
[1729503153956,0.04498279,68285.0,68284.0,0.075263]
[1729503155353,0.3608,68296.0,68284.0,0.075263]
[1729503155354,0.3608,68309.0,68284.0,0.3678]
[1729503155659,0.05255491,68308.0,68297.0,0.3608]
[1729503155858,0.05255491,68308.0,68304.0,0.073242]
[1729503156447,0.06555491,68308.0,68304.0,0.073242]
[1729503156750,0.06555491,68308.0,68299.0,0.073247]
[1729503157149,0.05255491,68308.0,68298.0,0.4791]
[1729503157446,0.05755491,68308.0,68302.0,0.073243]
[1729503157643,0.05755491,68308.0,68299.0,0.14608]
[1729503157644,0.05755491,68308.0,68304.0,0.073242]
[1729503157851,0.015,68308.0,68306.0,0.073239]
[1729503158048,0.015,68308.0,68307.0,0.073239]
[1729503158755,0.01,68308.0,68307.0,0.073239]
[1729503158959,0.006,68308.0,68304.0,0.229]
[1729503159155,0.01,68308.0,68305.0,0.073241]
[1729503159563,0.004,68308.0,68305.0,0.073241]
[1729503159751,0.007,68308.0,68305.0,0.073241]
[1729503160358,0.004,68308.0,68305.0,0.073241]
[1729503160562,0.007,68308.0,68305.0,0.073241]
[1729503161059,0.007,68308.0,68301.0,0.073245]
[1729503161261,0.003,68308.0,68299.0,0.2278]
[1729503161467,0.3608,68300.0,68298.0,0.0012]
[1729503161657,0.3608,68300.0,68287.0,0.07326]
[1729503161862,0.2309,68299.0,68287.0,0.07326]
[1729503162667,0.2309,68299.0,68298.0,0.007]
[1729503163258,0.2319,68299.0,68298.0,0.007]
[1729503164759,0.2319,68299.0,68290.0,0.36899647]
[1729503164967,0.2329,68299.0,68290.0,0.37699647]
[1729503165268,0.2369,68299.0,68290.0,0.37099647]
[1729503165567,0.2419,68299.0,68298.0,0.001]
[1729503165959,0.2439,68299.0,68298.0,0.001]
[1729503166262,0.2439,68299.0,68290.0,0.00419647]
[1729503166457,0.3608,68292.0,68290.0,0.00419647]
[1729503166653,0.3608,68292.0,68290.0,0.00319647]
[1729503166857,0.3608,68292.0,68290.0,0.00219647]
[1729503166858,0.238,68291.0,68290.0,0.00219647]
[1729503167054,0.238,68291.0,68280.0,0.073267]
[1729503167257,0.3608,68286.0,68280.0,0.073267]
[1729503168368,0.3608,68286.0,68270.0,0.3608]
[1729503168557,0.3608,68286.0,68282.0,0.073265]
[1729503169253,0.3608,68286.0,68280.0,0.004]
[1729503169654,0.3608,68286.0,68282.0,0.075265]
[1729503169867,0.3608,68286.0,68282.0,0.079265]
[1729503170060,0.3608,68286.0,68282.0,0.006]
[1729503170261,0.3608,68286.0,68283.0,0.073264]
[1729503170468,0.5988,68291.0,68282.0,0.004]
[1729503170759,0.5988,68291.0,68287.0,0.073259]
[1729503170961,0.5988,68291.0,68284.0,0.073263]
[1729503172866,0.6028,68291.0,68279.0,0.2389]
[1729503173066,0.6028,68291.0,68290.0,0.073257]
[1729503173067,0.3648,68291.0,68290.0,0.073257]
[1729503173464,0.3648,68291.0,68282.0,0.3608]
[1729503173868,0.09754435,68290.0,68288.0,0.073259]
[1729503174065,0.04498257,68289.0,68288.0,0.073259]
[1729503175169,0.09754558,68290.0,68285.0,0.073261]
[1729503175868,0.001,68289.0,68281.0,0.434066]
[1729503176164,0.0449838,68288.0,68282.0,0.073265]
[1729503177257,0.0449838,68288.0,68281.0,0.3608]
[1729503177459,0.0449838,68287.0,68283.0,0.073264]
[1729503177666,0.0449838,68286.0,68285.0,0.073262]
[1729503177861,0.0449838,68286.0,68281.0,0.3608]
[1729503178170,0.18763138,68289.0,68285.0,0.073262]
[1729503178367,0.04498448,68288.0,68285.0,0.06593581]
[1729503178569,0.04498448,68287.0,68285.0,0.06593581]
[1729503178763,0.23358981,68286.0,68285.0,0.06593581]
[1729503179270,0.04498448,68286.0,68285.0,0.06593581]
[1729503179463,0.04498448,68286.0,68285.0,0.06693581]
[1729503179664,0.18860533,68288.0,68287.0,0.07326]
[1729503179865,0.23358808,68288.0,68287.0,0.07326]
[1729503180066,0.04498275,68288.0,68287.0,0.07326]
[1729503180768,0.3608,68310.0,68288.0,0.43932]
[1729503180966,0.3608,68310.0,68300.0,0.073246]
[1729503181167,0.18860782,68303.0,68295.0,0.07325]
[1729503181371,0.18860782,68303.0,68293.0,0.3608]
[1729503181562,0.22369685,68302.0,68293.0,0.3608]
[1729503181767,0.3608,68296.0,68287.0,0.3608]
[1729503182165,0.3608,68296.0,68287.0,0.002]
[1729503182366,0.3608,68296.0,68293.0,0.073253]
[1729503182772,0.3608,68296.0,68293.0,0.074253]
[1729503182972,0.3608,68296.0,68294.0,0.073252]
[1729503183475,0.3668,68296.0,68293.0,0.002]
[1729503183679,0.3738,68296.0,68293.0,0.002]
[1729503185062,0.3608,68296.0,68292.0,0.073254]
[1729503185265,0.3708,68296.0,68292.0,0.073254]
[1729503185470,0.3708,68296.0,68288.0,0.3608]
[1729503185768,0.3668,68296.0,68288.0,0.3608]
[1729503185967,0.3708,68296.0,68288.0,0.3608]
[1729503186866,0.3708,68296.0,68288.0,0.3618]
[1729503187173,0.08086706,68295.0,68288.0,0.3618]
[1729503187372,0.08086706,68294.0,68288.0,0.3618]
[1729503187574,0.08086706,68293.0,68288.0,0.3618]
[1729503187775,0.08086706,68292.0,68288.0,0.3618]
[1729503187975,0.08086712,68291.0,68288.0,0.001]
[1729503188272,0.08086712,68290.0,68281.0,0.434066]
[1729503188482,0.08086712,68289.0,68282.0,0.073265]
[1729503188771,0.08086712,68288.0,68282.0,0.073265]
[1729503189082,0.13343063,68287.0,68281.0,0.31932851]
[1729503189271,0.13343063,68286.0,68282.0,0.073265]
[1729503189574,0.38734318,68296.0,68270.0,0.073277]
[1729503189575,0.3608,68284.0,68270.0,0.073277]
[1729503189779,0.3608,68271.0,68269.0,0.2448]
[1729503190075,0.15768547,68270.0,68263.0,0.02663558]
[1729503190275,0.15768547,68269.0,68268.0,0.07328]
[1729503190577,0.39012056,68269.0,68261.0,0.2448]
[1729503190769,0.04498261,68268.0,68267.0,0.07547814]
[1729503190968,0.09754443,68268.0,68267.0,0.07547814]
[1729503191165,0.15768547,68268.0,68267.0,0.07547814]
[1729503191365,0.09754443,68268.0,68267.0,0.07547814]
[1729503191567,0.15768547,68268.0,68267.0,0.07547814]
[1729503191772,0.09754443,68268.0,68267.0,0.07547814]
[1729503191978,0.15768547,68268.0,68267.0,0.07547814]
[1729503192284,0.09754443,68268.0,68267.0,0.07547814]
[1729503192580,0.09854443,68268.0,68267.0,0.08947814]
[1729503192778,0.09954443,68268.0,68267.0,0.10147814]
[1729503192978,0.09955363,68268.0,68267.0,0.10147814]
[1729503194178,0.09955363,68268.0,68267.0,0.02819714]
[1729503194583,0.09955363,68268.0,68267.0,0.10147814]
[1729503195475,0.09955363,68268.0,68267.0,0.09133033]
[1729503196567,0.3608,68278.0,68267.0,0.53077033]
[1729503196873,0.05257002,68277.0,68276.0,0.073272]
[1729503197177,0.3608,68286.0,68285.0,0.073262]
[1729503197678,0.3608,68286.0,68274.0,0.28263477]
[1729503197881,0.3608,68286.0,68274.0,0.2387]
[1729503198075,0.001,68278.0,68277.0,0.073271]
[1729503198478,0.002,68278.0,68277.0,0.073271]
[1729503198785,0.001,68278.0,68277.0,0.073271]
[1729503198985,0.3608,68286.0,68280.0,0.073267]
[1729503199279,0.3608,68286.0,68274.0,0.006]
[1729503199474,0.3608,68275.0,68274.0,0.006]
[1729503199676,0.3608,68275.0,68274.0,0.002]
[1729503200077,0.3608,68275.0,68274.0,0.075274]
[1729503200587,0.3608,68275.0,68274.0,0.073274]
[1729503201475,0.3618,68275.0,68274.0,0.081274]
[1729503202074,0.001,68275.0,68274.0,0.081274]
[1729503202988,0.002,68275.0,68274.0,0.094274]
[1729503203487,0.002,68275.0,68274.0,0.533674]
[1729503203881,0.002,68275.0,68274.0,0.5775297]
[1729503204187,0.002,68275.0,68274.0,0.533674]
[1729503204384,0.04698754,68275.0,68274.0,0.094274]
[1729503204785,0.04698754,68275.0,68274.0,0.021]
[1729503205782,0.40778754,68275.0,68274.0,0.021]
[1729503205989,0.46035513,68275.0,68274.0,0.021]
[1729503207185,0.46035513,68275.0,68274.0,0.01157211]
[1729503207186,0.09955513,68275.0,68274.0,0.01157211]
[1729503207382,0.46035513,68275.0,68274.0,0.01157211]
[1729503209684,0.59656777,68275.0,68274.0,0.01157211]
[1729503209991,0.46035513,68275.0,68274.0,0.01157211]
[1729503210691,0.40778754,68275.0,68274.0,0.01157211]
[1729503212087,0.3628,68275.0,68274.0,0.01157211]
[1729503216087,0.3628,68275.0,68274.0,0.01097211]
[1729503221096,0.40779376,68275.0,68274.0,0.01097211]
[1729503221297,0.3628,68275.0,68274.0,0.01097211]
[1729503221998,0.84719444,68275.0,68260.0,0.00219766]
[1729503222299,0.3608,68261.0,68260.0,0.00219766]
[1729503223396,0.3608,68261.0,68260.0,0.00419766]
[1729503224193,0.3618,68261.0,68260.0,0.00519766]
[1729503224790,0.38962576,68261.0,68260.0,0.07648666]
[1729503225601,0.38962576,68261.0,68260.0,0.001]
[1729503226299,0.38962576,68261.0,68237.0,0.073313]
[1729503226300,0.43952,68260.0,68237.0,0.073313]
[1729503226505,0.3608,68243.0,68242.0,0.073308]
[1729503226701,0.3608,68243.0,68239.0,0.073311]
[1729503226999,0.482,68242.0,68241.0,0.073309]
[1729503227202,0.57960745,68242.0,68241.0,0.073309]
[1729503228096,0.57960745,68242.0,68236.0,0.434114]
[1729503228402,0.09760745,68241.0,68230.0,0.3608]
[1729503228704,0.04501167,68240.0,68231.0,0.2317]
[1729503228892,0.04501167,68239.0,68231.0,0.2317]
[1729503229097,0.04501167,68238.0,68233.0,0.073317]
[1729503229293,0.3608,68236.0,68231.0,0.2317]
[1729503229493,0.09760745,68235.0,68225.0,0.3608]
[1729503229695,0.09760745,68235.0,68229.0,0.073321]
[1729503230104,0.09760745,68235.0,68226.0,0.231]
[1729503230105,0.04501167,68234.0,68230.0,0.07332]
[1729503230297,0.04501167,68233.0,68231.0,0.07332]
[1729503230606,0.04501167,68232.0,68231.0,0.07332]
[1729503230802,0.04501167,68234.0,68231.0,0.43412]
[1729503231003,0.04501167,68233.0,68231.0,0.43412]
[1729503231216,0.08092248,68232.0,68231.0,0.43412]
[1729503231505,0.001,68235.0,68234.0,0.073317]
[1729503232097,0.001,68235.0,68232.0,0.0012]
[1729503232098,0.001,68233.0,68231.0,0.3608]
[1729503232305,0.008,68233.0,68232.0,0.073318]
[1729503232903,0.007,68233.0,68232.0,0.073318]
[1729503233105,0.007,68233.0,68231.0,0.073319]
[1729503234007,0.011,68233.0,68231.0,0.073319]
[1729503234505,0.004,68233.0,68231.0,0.073319]
[1729503234707,0.004,68233.0,68227.0,0.60868]
[1729503234907,0.004,68233.0,68230.0,0.073314]
[1729503235309,0.018,68233.0,68230.0,0.073314]
[1729503235809,0.011,68233.0,68227.0,0.48384]
[1729503236011,0.006,68233.0,68227.0,0.4826]
[1729503236204,0.014,68233.0,68227.0,0.555917]
[1729503236408,0.008,68233.0,68228.0,0.073315]
[1729503236707,0.014,68233.0,68228.0,0.073315]
[1729503237308,0.014,68233.0,68227.0,0.48384]
[1729503237309,0.014,68233.0,68229.0,0.073315]
[1729503237508,0.014,68233.0,68227.0,0.48384]
[1729503237509,0.014,68233.0,68231.0,0.073313]
[1729503237915,1.36,68232.0,68231.0,0.073313]
[1729503238218,1.36,68232.0,68227.0,0.48384]
[1729503238414,1.36,68232.0,68228.0,0.073316]
[1729503239009,1.36,68232.0,68227.0,0.48392]
[1729503239010,1.36,68232.0,68230.0,0.073313]
[1729503239210,1.36,68232.0,68231.0,0.073313]
[1729503239608,1.366,68232.0,68231.0,0.073313]
[1729503239808,1.374,68232.0,68231.0,0.073313]
[1729503240814,1.374,68232.0,68227.0,0.557116]
[1729503241124,1.368,68232.0,68227.0,0.555917]
[1729503241317,1.366,68232.0,68227.0,0.4826]
[1729503241627,1.373,68232.0,68227.0,0.4826]
[1729503242013,1.372,68232.0,68227.0,0.4826]
[1729503242213,0.09761465,68231.0,68227.0,0.555917]
[1729503242409,0.04501499,68230.0,68227.0,0.555917]
[1729503242613,0.04501499,68229.0,68227.0,0.555917]
[1729503242808,0.04501499,68228.0,68227.0,0.555917]
[1729503243021,0.04501499,68228.0,68225.0,0.3608]
[1729503243219,0.04501499,68227.0,68225.0,0.3608]
[1729503243519,0.04501499,68226.0,68225.0,0.3608]
[1729503243723,0.04501499,68226.0,68217.0,0.02699403]
[1729503243724,0.3608,68229.0,68213.0,0.5864]
[1729503243928,0.3608,68229.0,68214.0,0.2259]
[1729503243929,0.09761465,68228.0,68214.0,0.2259]
[1729503244220,0.04502159,68227.0,68214.0,0.299231]
[1729503244409,0.28679966,68228.0,68214.0,0.299231]
[1729503244410,0.04502159,68226.0,68214.0,0.299231]
[1729503244611,0.04502159,68225.0,68214.0,0.299231]
[1729503244916,1.40502159,68224.0,68214.0,0.299231]
[1729503245111,1.40502159,68224.0,68209.0,0.2408]
[1729503245112,0.40582159,68223.0,68209.0,0.2408]
[1729503245325,0.09762955,68222.0,68209.0,0.2408]
[1729503246122,0.09762955,68222.0,68207.0,0.434138]
[1729503246317,0.3608,68217.0,68207.0,0.3608]
[1729503246625,0.09763489,68216.0,68207.0,0.3608]
[1729503247425,0.09763489,68216.0,68207.0,0.434139]
[1729503247625,0.09763489,68216.0,68207.0,0.3608]
[1729503247832,0.09763489,68216.0,68201.0,0.58082]
[1729503247833,0.09763489,68216.0,68193.0,0.073353]
[1729503248019,0.3608,68210.0,68209.0,0.073337]
[1729503248322,0.45843406,68210.0,68209.0,0.073337]
[1729503249115,0.3608,68210.0,68205.0,0.12272]
[1729503249624,0.3608,68210.0,68206.0,0.073339]